[Event "*** Titled Tuesday Blitz"]
[Site "Chess.com"]
[Date "2020.12.29"]
[Round "1"]
[White "ODreamchess"]
[Black "ExtremeLearner"]
[Result "1-0"]
[WhiteElo "2672"]
[BlackElo "2349"]
[TimeControl "180+1"]
[EndTime "10:06:42 PST"]
[Termination "ODreamchess won by checkmate"]

1. c4 {[%clk 0:03:00.7]} 1... Nf6 {[%clk 0:02:59.3]} 2. Nf3 {[%clk 0:03:00.6]}
2... g6 {[%clk 0:02:58.6]} 3. g3 {[%clk 0:03:01.5]} 3... Bg7 {[%clk 0:02:57.3]}
4. Bg2 {[%clk 0:03:02.4]} 4... d6 {[%clk 0:02:57.6]} 5. O-O {[%clk 0:03:03.3]}
5... O-O {[%clk 0:02:55.7]} 6. Nc3 {[%clk 0:03:04.2]} 6... c6 {[%clk 0:02:50.1]}
7. d3 {[%clk 0:03:04]} 7... e5 {[%clk 0:02:48.5]} 8. Bg5 {[%clk 0:03:03.9]} 8...
Nbd7 {[%clk 0:02:48.1]} 9. Bxf6 {[%clk 0:03:04.8]} 9... Nxf6 {[%clk 0:02:48.3]}
10. Rb1 {[%clk 0:03:05.3]} 10... a5 {[%clk 0:02:47.4]} 11. a3 {[%clk 0:03:05.1]}
11... Bg4 {[%clk 0:02:44.9]} 12. b4 {[%clk 0:03:03.6]} 12... axb4 {[%clk
0:02:44.5]} 13. axb4 {[%clk 0:03:04.5]} 13... Qd7 {[%clk 0:02:30.3]} 14. b5
{[%clk 0:03:01.8]} 14... Bh3 {[%clk 0:02:19.7]} 15. bxc6 {[%clk 0:02:52.4]}
15... bxc6 {[%clk 0:02:17.7]} 16. c5 {[%clk 0:02:50.8]} 16... Bxg2 {[%clk
0:02:15.8]} 17. Kxg2 {[%clk 0:02:49.6]} 17... dxc5 {[%clk 0:01:47.4]} 18. Qb3
{[%clk 0:02:48.2]} 18... Nd5 {[%clk 0:01:43.7]} 19. Ne4 {[%clk 0:02:42.7]} 19...
Ra5 {[%clk 0:01:29.7]} 20. Rfc1 {[%clk 0:02:39.2]} 20... Qe7 {[%clk 0:01:23.9]}
21. Qb7 {[%clk 0:02:34.9]} 21... Qxb7 {[%clk 0:01:10.1]} 22. Rxb7 {[%clk
0:02:35.8]} 22... Ra2 {[%clk 0:01:08.9]} 23. Kf1 {[%clk 0:02:35.6]} 23... f5
{[%clk 0:00:45.9]} 24. Nxc5 {[%clk 0:02:32]} 24... e4 {[%clk 0:00:35.5]} 25. Ng5
{[%clk 0:02:17.2]} 25... exd3 {[%clk 0:00:24.4]} 26. exd3 {[%clk 0:02:18.1]}
26... Bd4 {[%clk 0:00:18.3]} 27. Nh3 {[%clk 0:02:08.3]} 27... Re8 {[%clk
0:00:15.2]} 28. Nb3 {[%clk 0:01:50.9]} 28... Bb2 {[%clk 0:00:08.3]} 29. Rc2
{[%clk 0:01:36.9]} 29... Rea8 {[%clk 0:00:07.1]} 30. Rxc6 {[%clk 0:01:23.1]}
30... Bc3 {[%clk 0:00:04.2]} 31. Nf4 {[%clk 0:01:18.8]} 31... Nxf4 {[%clk
0:00:03.9]} 32. gxf4 {[%clk 0:01:12.8]} 32... Bg7 {[%clk 0:00:04.3]} 33. Rcc7
{[%clk 0:01:11.8]} 33... Bf6 {[%clk 0:00:04.4]} 34. d4 {[%clk 0:00:56.8]} 34...
Rb2 {[%clk 0:00:03.2]} 35. d5 {[%clk 0:00:53.2]} 35... Raa2 {[%clk 0:00:02.1]}
36. Rb8+ {[%clk 0:00:52.8]} 36... Bd8 {[%clk 0:00:01.9]} 37. Rxd8# {[%clk
0:00:52.9]} 1-0

[Event "*** Titled Tuesday Blitz"]
[Site "Chess.com"]
[Date "2020.12.29"]
[Round "1"]
[White "Alomaterapia"]
[Black "DanielNaroditsky"]
[Result "0-1"]
[WhiteElo "2476"]
[BlackElo "3121"]
[TimeControl "180+1"]
[EndTime "10:06:46 PST"]
[Termination "DanielNaroditsky won on time"]

1. e4 {[%clk 0:03:00.3]} 1... e5 {[%clk 0:02:55.9]} 2. Nf3 {[%clk 0:03:00.1]}
2... Nc6 {[%clk 0:02:55.4]} 3. Bc4 {[%clk 0:03:00.6]} 3... Bc5 {[%clk
0:02:51.9]} 4. b4 {[%clk 0:03:00.3]} 4... Bxb4 {[%clk 0:02:50.6]} 5. c3 {[%clk
0:03:00.7]} 5... Be7 {[%clk 0:02:51.3]} 6. d4 {[%clk 0:02:58.4]} 6... Na5 {[%clk
0:02:51.8]} 7. Bd3 {[%clk 0:02:54.8]} 7... d6 {[%clk 0:02:52.2]} 8. dxe5 {[%clk
0:02:55.1]} 8... dxe5 {[%clk 0:02:51.4]} 9. Nxe5 {[%clk 0:02:55.4]} 9... Nf6
{[%clk 0:02:52.1]} 10. O-O {[%clk 0:02:54.2]} 10... O-O {[%clk 0:02:51.6]} 11.
Qc2 {[%clk 0:02:47.4]} 11... c6 {[%clk 0:02:47.8]} 12. f4 {[%clk 0:02:27.7]}
12... Qc7 {[%clk 0:02:15.4]} 13. Be3 {[%clk 0:02:20.5]} 13... b5 {[%clk
0:02:12.4]} 14. Nd2 {[%clk 0:02:16.8]} 14... Rd8 {[%clk 0:02:12.3]} 15. Nb3
{[%clk 0:02:09.3]} 15... Nb7 {[%clk 0:02:07.3]} 16. a4 {[%clk 0:01:57]} 16...
Nd6 {[%clk 0:01:34.8]} 17. Nc5 {[%clk 0:01:35.6]} 17... a5 {[%clk 0:01:34.9]}
18. Kh1 {[%clk 0:01:09.7]} 18... h6 {[%clk 0:01:33.2]} 19. Bd4 {[%clk
0:01:06.1]} 19... Rb8 {[%clk 0:01:20.9]} 20. Nf3 {[%clk 0:00:47.8]} 20... Nc4
{[%clk 0:01:21.4]} 21. Bxc4 {[%clk 0:00:42.2]} 21... bxc4 {[%clk 0:01:22.3]} 22.
Be5 {[%clk 0:00:30]} 22... Bd6 {[%clk 0:01:20.8]} 23. Bxd6 {[%clk 0:00:24.4]}
23... Qxd6 {[%clk 0:01:21]} 24. Rad1 {[%clk 0:00:20.5]} 24... Qe7 {[%clk
0:01:17.2]} 25. Rxd8+ {[%clk 0:00:17.2]} 25... Qxd8 {[%clk 0:01:18.1]} 26. Qe2
{[%clk 0:00:14.7]} 26... Ng4 {[%clk 0:00:53.3]} 27. h3 {[%clk 0:00:14.3]} 27...
Qe7 {[%clk 0:00:53.9]} 28. hxg4 {[%clk 0:00:07.4]} 28... Qxc5 {[%clk 0:00:54.5]}
29. f5 {[%clk 0:00:07.8]} 29... Rb3 {[%clk 0:00:52.4]} 30. e5 {[%clk 0:00:07.7]}
30... Rxc3 {[%clk 0:00:51.5]} 31. Rd1 {[%clk 0:00:05.4]} 31... Kh7 {[%clk
0:00:40.7]} 32. Qe4 {[%clk 0:00:05.2]} 32... Re3 {[%clk 0:00:38.8]} 33. Qf4
{[%clk 0:00:03.6]} 33... c3 {[%clk 0:00:39.4]} 34. Rc1 {[%clk 0:00:02.1]} 34...
c2 {[%clk 0:00:38.3]} 35. Rxc2 {[%clk 0:00:01.4]} 35... Rxf3 {[%clk 0:00:39]}
0-1

[Event "*** Titled Tuesday Blitz"]
[Site "Chess.com"]
[Date "2020.12.29"]
[Round "1"]
[White "Witik"]
[Black "Training_Day"]
[Result "1-0"]
[WhiteElo "2711"]
[BlackElo "2376"]
[TimeControl "180+1"]
[EndTime "10:06:47 PST"]
[Termination "Witik won by resignation"]

1. d4 {[%clk 0:02:58]} 1... Nf6 {[%clk 0:02:57]} 2. c4 {[%clk 0:02:56.1]} 2...
e6 {[%clk 0:02:56.7]} 3. Nf3 {[%clk 0:02:56.2]} 3... Bb4+ {[%clk 0:02:55.6]} 4.
Nbd2 {[%clk 0:02:55.8]} 4... O-O {[%clk 0:02:52.7]} 5. e3 {[%clk 0:02:54.3]}
5... d5 {[%clk 0:02:47.1]} 6. a3 {[%clk 0:02:54]} 6... Be7 {[%clk 0:02:46.3]} 7.
b4 {[%clk 0:02:53.7]} 7... a5 {[%clk 0:02:42.9]} 8. b5 {[%clk 0:02:53.5]} 8...
c5 {[%clk 0:02:43.1]} 9. Bb2 {[%clk 0:02:52.6]} 9... Nbd7 {[%clk 0:02:27.4]} 10.
Qc2 {[%clk 0:02:42.4]} 10... cxd4 {[%clk 0:02:24.5]} 11. Bxd4 {[%clk 0:02:23.1]}
11... dxc4 {[%clk 0:02:19.1]} 12. Bxc4 {[%clk 0:02:20.9]} 12... a4 {[%clk
0:02:12.7]} 13. O-O {[%clk 0:02:20]} 13... Nc5 {[%clk 0:02:11.6]} 14. Ne5 {[%clk
0:02:02.6]} 14... Bd7 {[%clk 0:01:56.6]} 15. Rfd1 {[%clk 0:01:54.6]} 15... Rc8
{[%clk 0:01:55.6]} 16. Qa2 {[%clk 0:01:54.3]} 16... Qa5 {[%clk 0:01:39.6]} 17.
Ndf3 {[%clk 0:01:45.8]} 17... Rfd8 {[%clk 0:01:33.4]} 18. Bxc5 {[%clk
0:01:09.6]} 18... Bxc5 {[%clk 0:01:32.5]} 19. Nxd7 {[%clk 0:01:09.5]} 19... Nxd7
{[%clk 0:01:11.1]} 20. Bxe6 {[%clk 0:01:07.7]} 20... Qxb5 {[%clk 0:00:49.6]} 21.
Ng5 {[%clk 0:00:50.4]} 21... Ne5 {[%clk 0:00:19.3]} 22. Bxc8 {[%clk 0:00:45.3]}
22... Rxc8 {[%clk 0:00:20.2]} 23. Qd5 {[%clk 0:00:42.5]} 23... h6 {[%clk
0:00:17.3]} 24. Ne4 {[%clk 0:00:23.7]} 24... Nc4 {[%clk 0:00:03.6]} 25. Rab1
{[%clk 0:00:20.5]} 25... Qc6 {[%clk 0:00:02.2]} 26. Qxc4 {[%clk 0:00:18.8]} 1-0

[Event "*** Titled Tuesday Blitz"]
[Site "Chess.com"]
[Date "2020.12.29"]
[Round "1"]
[White "Onischuk_V"]
[Black "JoliyRoger"]
[Result "1-0"]
[WhiteElo "2794"]
[BlackElo "2418"]
[TimeControl "180+1"]
[EndTime "10:06:48 PST"]
[Termination "Onischuk_V won on time"]

1. e4 {[%clk 0:02:58.3]} 1... c6 {[%clk 0:02:58.6]} 2. d4 {[%clk 0:02:57.8]}
2... d5 {[%clk 0:02:59.5]} 3. Nc3 {[%clk 0:02:58.2]} 3... h6 {[%clk 0:02:59]} 4.
e5 {[%clk 0:02:45.1]} 4... Bf5 {[%clk 0:02:58.2]} 5. g4 {[%clk 0:02:45.1]} 5...
Bd7 {[%clk 0:02:57.7]} 6. f4 {[%clk 0:02:44.4]} 6... e6 {[%clk 0:02:58.1]} 7.
Nf3 {[%clk 0:02:38.3]} 7... h5 {[%clk 0:02:52.9]} 8. g5 {[%clk 0:02:37.6]} 8...
g6 {[%clk 0:02:52.8]} 9. f5 {[%clk 0:02:34]} 9... exf5 {[%clk 0:02:50.4]} 10.
Ne2 {[%clk 0:02:33.8]} 10... Na6 {[%clk 0:02:47.6]} 11. Nf4 {[%clk 0:02:28.6]}
11... Nc7 {[%clk 0:02:47.9]} 12. c4 {[%clk 0:02:28.9]} 12... dxc4 {[%clk
0:02:18.8]} 13. Bxc4 {[%clk 0:02:27.9]} 13... Be6 {[%clk 0:02:18.8]} 14. Bxe6
{[%clk 0:02:10.4]} 14... Nxe6 {[%clk 0:02:17.5]} 15. Qb3 {[%clk 0:02:09.4]}
15... Nxf4 {[%clk 0:02:13.4]} 16. Bxf4 {[%clk 0:02:08.5]} 16... Qb6 {[%clk
0:02:05.6]} 17. Qc2 {[%clk 0:01:37.6]} 17... Ne7 {[%clk 0:01:58.4]} 18. e6
{[%clk 0:01:36.8]} 18... fxe6 {[%clk 0:01:58.4]} 19. Be5 {[%clk 0:01:34.5]}
19... Rg8 {[%clk 0:01:55.7]} 20. O-O-O {[%clk 0:01:31.5]} 20... Nd5 {[%clk
0:01:34.6]} 21. Rhe1 {[%clk 0:01:29.5]} 21... O-O-O {[%clk 0:01:34.9]} 22. Kb1
{[%clk 0:01:29.1]} 22... Bd6 {[%clk 0:00:34.8]} 23. Bf6 {[%clk 0:01:25.9]} 23...
Rde8 {[%clk 0:00:31.8]} 24. Re2 {[%clk 0:01:21.8]} 24... a6 {[%clk 0:00:20.8]}
25. Rde1 {[%clk 0:01:20.5]} 25... Kd7 {[%clk 0:00:20.3]} 26. Be5 {[%clk
0:01:17.8]} 26... Be7 {[%clk 0:00:20.2]} 27. Bg3 {[%clk 0:01:15.6]} 27... Bd8
{[%clk 0:00:20.3]} 28. Ne5+ {[%clk 0:01:14.4]} 28... Kc8 {[%clk 0:00:20.6]} 29.
Nc4 {[%clk 0:01:14.6]} 29... Qb4 {[%clk 0:00:17.5]} 30. a3 {[%clk 0:01:09.7]}
30... Qf8 {[%clk 0:00:15.2]} 31. Nd6+ {[%clk 0:01:07.6]} 31... Kd7 {[%clk
0:00:15.7]} 32. Nxb7 {[%clk 0:01:07.7]} 32... Bb6 {[%clk 0:00:11.9]} 33. Rc1
{[%clk 0:01:03.5]} 33... Rc8 {[%clk 0:00:09.1]} 34. Qa4 {[%clk 0:01:03.3]} 34...
f4 {[%clk 0:00:04.8]} 35. Bf2 {[%clk 0:01:00.8]} 35... Qf5+ {[%clk 0:00:05.4]}
36. Ka1 {[%clk 0:00:56.3]} 36... f3 {[%clk 0:00:06.3]} 37. Rec2 {[%clk
0:00:56.3]} 37... Rc7 {[%clk 0:00:01.7]} 38. Rxc6 {[%clk 0:00:54.9]} 38... Rxb7
{[%clk 0:00:01.6]} 39. Rxb6+ {[%clk 0:00:54.3]} 1-0

[Event "*** Titled Tuesday Blitz"]
[Site "Chess.com"]
[Date "2020.12.29"]
[Round "1"]
[White "PawnEatingZombie"]
[Black "Sadykov_Ramil"]
[Result "1-0"]
[WhiteElo "2247"]
[BlackElo "2529"]
[TimeControl "180+1"]
[EndTime "10:06:52 PST"]
[Termination "PawnEatingZombie won by resignation"]

1. d4 {[%clk 0:03:00.9]} 1... Nf6 {[%clk 0:02:54.2]} 2. c4 {[%clk 0:03:00.1]}
2... c5 {[%clk 0:02:54.1]} 3. d5 {[%clk 0:02:59.4]} 3... e6 {[%clk 0:02:54.5]}
4. Nc3 {[%clk 0:02:58.9]} 4... exd5 {[%clk 0:02:55]} 5. cxd5 {[%clk 0:02:59.8]}
5... d6 {[%clk 0:02:55.6]} 6. e4 {[%clk 0:03:00.4]} 6... g6 {[%clk 0:02:56.1]}
7. Bd3 {[%clk 0:03:00.9]} 7... Bg7 {[%clk 0:02:48.4]} 8. h3 {[%clk 0:03:00.6]}
8... O-O {[%clk 0:02:47.7]} 9. Nf3 {[%clk 0:03:00.6]} 9... b5 {[%clk 0:02:45.4]}
10. Nxb5 {[%clk 0:03:00.3]} 10... Nxe4 {[%clk 0:02:23.3]} 11. Bxe4 {[%clk
0:02:42.6]} 11... Re8 {[%clk 0:02:19.5]} 12. Ng5 {[%clk 0:02:37.8]} 12... h6
{[%clk 0:01:58.9]} 13. Ne6 {[%clk 0:02:30.9]} 13... fxe6 {[%clk 0:01:15.8]} 14.
O-O {[%clk 0:02:00.5]} 14... Bb7 {[%clk 0:00:56.8]} 15. Nc3 {[%clk 0:01:38.5]}
15... Qf6 {[%clk 0:00:47.5]} 16. dxe6 {[%clk 0:01:30.1]} 16... Bxe4 {[%clk
0:00:46.7]} 17. Nxe4 {[%clk 0:01:31]} 17... Qxe6 {[%clk 0:00:46.9]} 18. Nxd6
{[%clk 0:01:02.2]} 18... Rd8 {[%clk 0:00:46.2]} 19. Bf4 {[%clk 0:01:02.7]} 19...
Bxb2 {[%clk 0:00:32.1]} 20. Re1 {[%clk 0:00:53.4]} 20... Qf6 {[%clk 0:00:28.3]}
21. Ne4 {[%clk 0:00:42.6]} 21... Rxd1 {[%clk 0:00:11.3]} 22. Nxf6+ {[%clk
0:00:42]} 22... Bxf6 {[%clk 0:00:11.4]} 23. Raxd1 {[%clk 0:00:41.1]} 23... Bd4
{[%clk 0:00:09.1]} 24. Rxd4 {[%clk 0:00:36]} 24... cxd4 {[%clk 0:00:08.5]} 25.
Re8+ {[%clk 0:00:34.8]} 25... Kf7 {[%clk 0:00:08.8]} 26. Rxb8 {[%clk 0:00:35.3]}
26... Rxb8 {[%clk 0:00:07.6]} 27. Bxb8 {[%clk 0:00:34.9]} 27... Ke6 {[%clk
0:00:08.5]} 28. Bf4 {[%clk 0:00:34]} 28... g5 {[%clk 0:00:08.2]} 29. Bd2 {[%clk
0:00:33.4]} 29... Kd5 {[%clk 0:00:08.5]} 30. Kf1 {[%clk 0:00:33.6]} 30... Kc4
{[%clk 0:00:08.9]} 31. Ke2 {[%clk 0:00:33.9]} 31... a6 {[%clk 0:00:08.6]} 32. g3
{[%clk 0:00:29]} 32... Kc5 {[%clk 0:00:04.8]} 33. f4 {[%clk 0:00:28.2]} 1-0

[Event "*** Titled Tuesday Blitz"]
[Site "Chess.com"]
[Date "2020.12.29"]
[Round "1"]
[White "Elyon2000"]
[Black "gmcorrales"]
[Result "0-1"]
[WhiteElo "2402"]
[BlackElo "2766"]
[TimeControl "180+1"]
[EndTime "10:06:55 PST"]
[Termination "gmcorrales won by checkmate"]

1. d4 {[%clk 0:03:00.7]} 1... d5 {[%clk 0:03:00.8]} 2. c4 {[%clk 0:03:00.4]}
2... c6 {[%clk 0:02:56]} 3. Nf3 {[%clk 0:02:56.4]} 3... Nf6 {[%clk 0:02:53.8]}
4. Qc2 {[%clk 0:02:54.5]} 4... dxc4 {[%clk 0:02:52.7]} 5. e4 {[%clk 0:02:54.3]}
5... b5 {[%clk 0:02:48.9]} 6. b3 {[%clk 0:02:54.5]} 6... cxb3 {[%clk 0:02:48.5]}
7. axb3 {[%clk 0:02:54.1]} 7... Bb7 {[%clk 0:02:46.2]} 8. Bd2 {[%clk 0:02:45.2]}
8... Nbd7 {[%clk 0:02:37.2]} 9. Bd3 {[%clk 0:02:40.9]} 9... e6 {[%clk
0:02:32.2]} 10. O-O {[%clk 0:02:40.8]} 10... Be7 {[%clk 0:02:18.8]} 11. Rc1
{[%clk 0:02:34.5]} 11... a6 {[%clk 0:02:14.8]} 12. Ba5 {[%clk 0:02:13.4]} 12...
Qb8 {[%clk 0:01:37.7]} 13. b4 {[%clk 0:01:49.9]} 13... e5 {[%clk 0:01:16.8]} 14.
Nbd2 {[%clk 0:01:43.9]} 14... exd4 {[%clk 0:01:14.3]} 15. Nxd4 {[%clk
0:01:42.2]} 15... Ne5 {[%clk 0:01:11.6]} 16. Nf5 {[%clk 0:01:31.7]} 16... Bf8
{[%clk 0:01:04.9]} 17. Bb6 {[%clk 0:01:14.5]} 17... g6 {[%clk 0:00:59.4]} 18.
Ne3 {[%clk 0:00:52.8]} 18... Bd6 {[%clk 0:00:53.3]} 19. Be2 {[%clk 0:00:51.3]}
19... O-O {[%clk 0:00:48.2]} 20. Bd4 {[%clk 0:00:46.7]} 20... Ned7 {[%clk
0:00:43.7]} 21. g3 {[%clk 0:00:46.1]} 21... Re8 {[%clk 0:00:41.3]} 22. f4 {[%clk
0:00:38.9]} 22... Bxf4 {[%clk 0:00:39.9]} 23. gxf4 {[%clk 0:00:36.6]} 23... Qxf4
{[%clk 0:00:40.8]} 24. Ng2 {[%clk 0:00:29.3]} 24... Qh6 {[%clk 0:00:36.7]} 25.
Be3 {[%clk 0:00:26.6]} 25... Qh3 {[%clk 0:00:36.4]} 26. Bf2 {[%clk 0:00:19]}
26... c5 {[%clk 0:00:36]} 27. bxc5 {[%clk 0:00:17.5]} 27... Nxe4 {[%clk
0:00:35.4]} 28. c6 {[%clk 0:00:15.4]} 28... Nxf2 {[%clk 0:00:27.7]} 29. Kxf2
{[%clk 0:00:16]} 29... Rxe2+ {[%clk 0:00:22.6]} 30. Kxe2 {[%clk 0:00:15.9]}
30... Qxg2+ {[%clk 0:00:22.5]} 31. Kd1 {[%clk 0:00:12.3]} 31... Qg1+ {[%clk
0:00:17.7]} 32. Ke2 {[%clk 0:00:12.6]} 32... Re8+ {[%clk 0:00:18.1]} 33. Kd3
{[%clk 0:00:13]} 33... Qe3# {[%clk 0:00:15.5]} 0-1

[Event "*** Titled Tuesday Blitz"]
[Site "Chess.com"]
[Date "2020.12.29"]
[Round "1"]
[White "FMalexhdez"]
[Black "UCantHandleDenker"]
[Result "0-1"]
[WhiteElo "2279"]
[BlackElo "2580"]
[TimeControl "180+1"]
[EndTime "10:06:57 PST"]
[Termination "UCantHandleDenker won on time"]

1. e4 {[%clk 0:03:00.3]} 1... d6 {[%clk 0:02:58.2]} 2. d4 {[%clk 0:02:58.1]}
2... Nf6 {[%clk 0:02:57.6]} 3. Nc3 {[%clk 0:02:58.2]} 3... g6 {[%clk 0:02:57.2]}
4. f4 {[%clk 0:02:55.2]} 4... Bg7 {[%clk 0:02:56.7]} 5. Nf3 {[%clk 0:02:55.6]}
5... c5 {[%clk 0:02:26.9]} 6. dxc5 {[%clk 0:02:41.4]} 6... Qa5 {[%clk
0:02:24.5]} 7. Bd3 {[%clk 0:02:37.3]} 7... Qxc5 {[%clk 0:02:21.7]} 8. Qe2 {[%clk
0:02:33.9]} 8... Nc6 {[%clk 0:02:19.3]} 9. Be3 {[%clk 0:02:32.6]} 9... Qa5
{[%clk 0:02:19.1]} 10. h3 {[%clk 0:02:25.8]} 10... Nh5 {[%clk 0:02:12.2]} 11.
Kf2 {[%clk 0:01:56.8]} 11... O-O {[%clk 0:01:59.8]} 12. g4 {[%clk 0:01:52.6]}
12... Nf6 {[%clk 0:01:58.2]} 13. Rag1 {[%clk 0:01:36.9]} 13... Rd8 {[%clk
0:01:32.4]} 14. f5 {[%clk 0:01:27.3]} 14... d5 {[%clk 0:01:31.5]} 15. e5 {[%clk
0:01:21.6]} 15... d4 {[%clk 0:01:31]} 16. Bf4 {[%clk 0:00:39]} 16... dxc3 {[%clk
0:01:23.6]} 17. exf6 {[%clk 0:00:38.9]} 17... exf6 {[%clk 0:01:22.2]} 18. Re1
{[%clk 0:00:21.5]} 18... Bd7 {[%clk 0:01:07.8]} 19. bxc3 {[%clk 0:00:20]} 19...
Qxc3 {[%clk 0:00:59]} 20. Kg2 {[%clk 0:00:18.5]} 20... Nd4 {[%clk 0:00:54.9]}
21. Qe3 {[%clk 0:00:09.1]} 21... Nxf3 {[%clk 0:00:47.8]} 22. Kxf3 {[%clk
0:00:06]} 22... Bc6+ {[%clk 0:00:46.9]} 23. Be4 {[%clk 0:00:06.4]} 23... Qxc2
{[%clk 0:00:45.6]} 24. Bxc6 {[%clk 0:00:05]} 24... Qxc6+ {[%clk 0:00:44.4]} 25.
Kg3 {[%clk 0:00:04.2]} 25... Qc4 {[%clk 0:00:38.9]} 26. Rc1 {[%clk 0:00:02.9]}
26... Qxa2 {[%clk 0:00:36.1]} 27. fxg6 {[%clk 0:00:03.8]} 27... hxg6 {[%clk
0:00:35.2]} 28. h4 {[%clk 0:00:03.9]} 28... Qa6 {[%clk 0:00:32.8]} 29. Rc3
{[%clk 0:00:02.2]} 29... Re8 {[%clk 0:00:31]} 30. Qf3 {[%clk 0:00:01.2]} 30...
Qe6 {[%clk 0:00:24.9]} 31. h5 {[%clk 0:00:01]} 31... f5 {[%clk 0:00:24.3]} 32.
Be3 {[%clk 0:00:01]} 32... fxg4 {[%clk 0:00:22.5]} 0-1

[Event "*** Titled Tuesday Blitz"]
[Site "Chess.com"]
[Date "2020.12.29"]
[Round "1"]
[White "MVM2008"]
[Black "jocmil"]
[Result "0-1"]
[WhiteElo "2198"]
[BlackElo "2532"]
[TimeControl "180+1"]
[EndTime "10:06:58 PST"]
[Termination "jocmil won on time"]

1. e4 {[%clk 0:02:49.4]} 1... e6 {[%clk 0:02:58.1]} 2. d4 {[%clk 0:02:47.9]}
2... d5 {[%clk 0:02:59]} 3. Nd2 {[%clk 0:02:48.3]} 3... Nf6 {[%clk 0:02:52.4]}
4. e5 {[%clk 0:02:48.5]} 4... Nfd7 {[%clk 0:02:52.8]} 5. Bd3 {[%clk 0:02:49.1]}
5... c5 {[%clk 0:02:53.3]} 6. c3 {[%clk 0:02:49.7]} 6... Nc6 {[%clk 0:02:54]} 7.
Ngf3 {[%clk 0:02:48.2]} 7... g6 {[%clk 0:02:48.5]} 8. O-O {[%clk 0:02:41.7]}
8... Bg7 {[%clk 0:02:46.9]} 9. b3 {[%clk 0:02:35.8]} 9... O-O {[%clk 0:02:43.9]}
10. Re1 {[%clk 0:02:28.7]} 10... f6 {[%clk 0:02:37.4]} 11. exf6 {[%clk
0:02:18.2]} 11... Qxf6 {[%clk 0:02:37.1]} 12. Bb2 {[%clk 0:02:10.5]} 12... e5
{[%clk 0:02:22.1]} 13. c4 {[%clk 0:01:55.6]} 13... exd4 {[%clk 0:01:26.9]} 14.
cxd5 {[%clk 0:01:48.5]} 14... Nce5 {[%clk 0:01:27]} 15. Bc4 {[%clk 0:01:30.7]}
15... a6 {[%clk 0:01:03.1]} 16. a4 {[%clk 0:01:29]} 16... b6 {[%clk 0:00:58.6]}
17. Kh1 {[%clk 0:01:12.5]} 17... Bb7 {[%clk 0:00:58.1]} 18. Ne4 {[%clk
0:01:11.8]} 18... Qf4 {[%clk 0:00:51.1]} 19. Bc1 {[%clk 0:01:05.6]} 19... Qg4
{[%clk 0:00:49.1]} 20. h3 {[%clk 0:00:49.8]} 20... Qh5 {[%clk 0:00:42.3]} 21.
Ng3 {[%clk 0:00:44.9]} 21... Nxf3 {[%clk 0:00:28.6]} 22. Nxh5 {[%clk 0:00:42.7]}
22... Nxe1 {[%clk 0:00:28.2]} 23. d6+ {[%clk 0:00:31.6]} 23... Kh8 {[%clk
0:00:28.1]} 24. Nxg7 {[%clk 0:00:27.4]} 24... Nxg2 {[%clk 0:00:26.1]} 25. Kg1
{[%clk 0:00:16.8]} 25... Kxg7 {[%clk 0:00:23.7]} 26. Qg4 {[%clk 0:00:12.3]}
26... Nf6 {[%clk 0:00:23.9]} 27. Qg5 {[%clk 0:00:05.5]} 27... Rae8 {[%clk
0:00:19.9]} 28. Qh6+ {[%clk 0:00:05.4]} 28... Kh8 {[%clk 0:00:19.6]} 29. Bg5
{[%clk 0:00:04.1]} 29... Ng8 {[%clk 0:00:17.8]} 0-1

[Event "*** Titled Tuesday Blitz"]
[Site "Chess.com"]
[Date "2020.12.29"]
[Round "1"]
[White "JoachimMouhamad"]
[Black "dozer80"]
[Result "1-0"]
[WhiteElo "2347"]
[BlackElo "2620"]
[TimeControl "180+1"]
[EndTime "10:06:59 PST"]
[Termination "JoachimMouhamad won by checkmate"]

1. e4 {[%clk 0:03:00.9]} 1... c5 {[%clk 0:02:59.6]} 2. Nf3 {[%clk 0:03:00.6]}
2... e6 {[%clk 0:03:00.2]} 3. d4 {[%clk 0:03:00.8]} 3... cxd4 {[%clk 0:03:01.1]}
4. Nxd4 {[%clk 0:03:01.4]} 4... a6 {[%clk 0:03:01.7]} 5. Bd3 {[%clk 0:02:57.5]}
5... Bc5 {[%clk 0:03:01.1]} 6. Nb3 {[%clk 0:02:56.1]} 6... Ba7 {[%clk
0:03:01.2]} 7. Qg4 {[%clk 0:02:47.7]} 7... Nf6 {[%clk 0:03:00.5]} 8. Qg3 {[%clk
0:02:41.7]} 8... Nc6 {[%clk 0:02:39.8]} 9. Nc3 {[%clk 0:02:37.7]} 9... h5 {[%clk
0:02:18.5]} 10. h3 {[%clk 0:02:32.5]} 10... h4 {[%clk 0:02:17.3]} 11. Qf4 {[%clk
0:02:23.9]} 11... d6 {[%clk 0:02:11.2]} 12. Be3 {[%clk 0:02:18.6]} 12... e5
{[%clk 0:01:56.2]} 13. Qf3 {[%clk 0:02:13.5]} 13... Bxe3 {[%clk 0:01:55.7]} 14.
Qxe3 {[%clk 0:02:13.1]} 14... Be6 {[%clk 0:01:54.6]} 15. O-O-O {[%clk
0:02:08.6]} 15... Rc8 {[%clk 0:01:35.6]} 16. Kb1 {[%clk 0:01:50.9]} 16... Qc7
{[%clk 0:01:16]} 17. Rhe1 {[%clk 0:01:49.3]} 17... Nh5 {[%clk 0:01:02.6]} 18.
Bf1 {[%clk 0:01:38.7]} 18... Nf4 {[%clk 0:00:58]} 19. Rd2 {[%clk 0:01:29.4]}
19... b5 {[%clk 0:00:45.5]} 20. Nd5 {[%clk 0:01:27.6]} 20... Bxd5 {[%clk
0:00:45.1]} 21. exd5 {[%clk 0:01:27.6]} 21... Ne7 {[%clk 0:00:45.8]} 22. g3
{[%clk 0:01:17.4]} 22... hxg3 {[%clk 0:00:45.3]} 23. fxg3 {[%clk 0:01:16.7]}
23... Nfxd5 {[%clk 0:00:45.4]} 24. Qg5 {[%clk 0:01:12.7]} 24... O-O {[%clk
0:00:39.6]} 25. h4 {[%clk 0:01:02.8]} 25... a5 {[%clk 0:00:39.2]} 26. h5 {[%clk
0:01:00.4]} 26... a4 {[%clk 0:00:38.3]} 27. h6 {[%clk 0:00:58.6]} 27... g6
{[%clk 0:00:38.3]} 28. Nc1 {[%clk 0:00:53.9]} 28... a3 {[%clk 0:00:37.7]} 29.
Bd3 {[%clk 0:00:37.1]} 29... axb2 {[%clk 0:00:35.7]} 30. Ne2 {[%clk 0:00:37.4]}
30... Kh7 {[%clk 0:00:33.1]} 31. Rf1 {[%clk 0:00:31.9]} 31... f5 {[%clk
0:00:30.1]} 32. g4 {[%clk 0:00:29.2]} 32... e4 {[%clk 0:00:29.5]} 33. Bxb5
{[%clk 0:00:27.2]} 33... Qa5 {[%clk 0:00:21.7]} 34. a4 {[%clk 0:00:24.9]} 34...
e3 {[%clk 0:00:19.1]} 35. Rxd5 {[%clk 0:00:23]} 35... Nxd5 {[%clk 0:00:17.7]}
36. gxf5 {[%clk 0:00:23.9]} 36... Qd2 {[%clk 0:00:13.5]} 37. Qxg6+ {[%clk
0:00:22]} 37... Kh8 {[%clk 0:00:13]} 38. Qg7# {[%clk 0:00:22.9]} 1-0